bitfinex-derivatives/quotes_BTCF0:USTF0_20241125
["timestamp","ask_amount","ask_price","bid_price","bid_amount"]
[1732566837899,0.413245,95324.0,95304.0,0.3608]
[1732566837900,1.21623353,95324.0,95304.0,0.3608]
[1732566838104,0.052456,95305.0,95304.0,0.728016]
[1732566838310,0.052856,95305.0,95304.0,0.73624805]
[1732566838706,0.052856,95305.0,95304.0,0.68379205]
[1732566838918,0.052856,95305.0,95304.0,0.73624805]
[1732566839411,0.0004,95305.0,95304.0,0.73624805]
[1732566840813,0.052451,95314.0,95313.0,0.052451]
[1732566841113,0.051451,95314.0,95313.0,0.052851]
[1732566842111,0.15689856,95314.0,95313.0,0.367611]
[1732566842315,0.052449,95317.0,95315.0,0.05245]
[1732566842316,0.15689856,95316.0,95315.0,0.05245]
[1732566842706,0.15689856,95316.0,95315.0,0.36761]
[1732566842908,0.15689856,95317.0,95316.0,0.05245]
[1732566843417,0.15689856,95317.0,95316.0,0.36761]
[1732566844014,0.54963055,95324.0,95323.0,0.052446]
[1732566844015,0.36136001,95324.0,95323.0,0.052446]
[1732566844217,0.3608,95324.0,95323.0,0.367206]
[1732566844406,0.3608,95324.0,95323.0,0.367606]
[1732566845815,0.052444,95326.0,95323.0,0.367606]
[1732566845816,0.052444,95326.0,95323.0,0.31516]
[1732566846018,0.052444,95326.0,95325.0,0.367205]
[1732566846319,0.052444,95326.0,95325.0,0.367605]
[1732566846816,0.02098897,95330.0,95329.0,0.052442]
[1732566847016,0.36140001,95342.0,95336.0,0.052439]
[1732566847320,0.15684594,95342.0,95341.0,0.0004]
[1732566847615,0.052425,95361.0,95357.0,0.052427]
[1732566847816,0.052425,95361.0,95359.0,0.052426]
[1732566848025,0.36144,95368.0,95360.0,0.31516]
[1732566848213,0.052423,95364.0,95362.0,0.31476]
[1732566848405,0.00012165,95363.0,95362.0,0.31476]
[1732566850916,0.052428,95356.0,95355.0,0.052428]
[1732566851217,0.052428,95356.0,95350.0,0.052431]
[1732566851218,0.05243,95352.0,95350.0,0.052431]
[1732566851417,0.3612,95356.0,95342.0,0.04]
[1732566851616,0.3612,95356.0,95334.0,0.052439]
[1732566851617,0.3608,95346.0,95334.0,0.052439]
[1732566851816,0.3608,95346.0,95335.0,0.31476]
[1732566851817,0.0004,95343.0,95335.0,0.31476]
[1732566852023,0.0004,95343.0,95321.0,0.04447314]
[1732566852024,0.3608,95338.0,95321.0,0.00157314]
[1732566852210,0.3608,95330.0,95321.0,0.00157314]
[1732566852411,0.3612,95322.0,95321.0,0.05402014]
[1732566852715,0.3612,95322.0,95321.0,0.00157314]
[1732566853009,0.4033,95322.0,95321.0,0.00157314]
[1732566853212,0.052447,95321.0,95317.0,0.00863206]
[1732566853412,0.052447,95321.0,95320.0,0.31476]
[1732566856120,0.052447,95321.0,95319.0,0.052448]
[1732566857221,0.00096001,95322.0,95320.0,0.31476]
[1732566857422,0.0004,95322.0,95321.0,0.367207]
[1732566857626,0.0004,95322.0,95321.0,0.367607]
[1732566858124,0.0004,95343.0,95342.0,0.052435]
[1732566858328,0.0004,95343.0,95342.0,0.727995]
[1732566858523,0.0004,95343.0,95342.0,0.728795]
[1732566859717,0.0004,95343.0,95342.0,0.73732251]
[1732566861219,0.36092165,95363.0,95362.0,0.052424]
[1732566861421,0.36092165,95363.0,95362.0,0.727984]
[1732566861422,0.00012165,95363.0,95362.0,0.727984]
[1732566861626,0.00012165,95363.0,95362.0,0.72918399]
[1732566862636,0.05254565,95363.0,95362.0,0.31595999]
[1732566863834,0.21170565,95363.0,95362.0,0.00119999]
[1732566864029,0.33870565,95363.0,95362.0,0.00119999]
[1732566866032,0.33870565,95363.0,95342.0,0.15929263]
[1732566866334,0.05243,95351.0,95350.0,0.31476]
[1732566866927,0.05243,95351.0,95350.0,0.367191]
[1732566867531,0.05243,95351.0,95350.0,0.31476]
[1732566868230,0.05355874,95351.0,95350.0,0.31476]
[1732566870028,0.05468748,95351.0,95350.0,0.31476]
[1732566870224,0.05468748,95351.0,95342.0,0.00839672]
[1732566870430,0.052435,95343.0,95342.0,0.00839672]
[1732566870635,0.052435,95343.0,95342.0,0.06083172]
[1732566871131,0.0557404,95343.0,95342.0,0.06083172]
[1732566872425,0.0557404,95343.0,95342.0,0.00013263]
[1732566873132,0.0557404,95343.0,95342.0,0.05256763]
[1732566875333,0.0557404,95343.0,95342.0,0.00013263]
[1732566876830,0.0033054,95343.0,95342.0,0.36732763]
[1732566878340,0.0557404,95343.0,95342.0,0.36732763]
[1732566878647,0.0033054,95343.0,95342.0,0.36732763]
[1732566879737,0.0557404,95343.0,95342.0,0.36732763]
[1732566880539,0.0033054,95343.0,95342.0,0.36732763]
[1732566883744,0.0557404,95343.0,95342.0,0.36732763]
[1732566884148,0.0033054,95343.0,95342.0,0.36732763]
[1732566884642,0.0033054,95343.0,95342.0,0.52648763]
[1732566885548,0.0557404,95343.0,95342.0,0.52648763]
[1732566885753,0.056222,95343.0,95342.0,0.47365263]
[1732566886048,0.056222,95343.0,95342.0,0.52608763]
[1732566886440,0.056222,95343.0,95342.0,0.36732763]
[1732566886742,0.056222,95343.0,95342.0,0.31489263]
[1732566887644,0.24466749,95343.0,95342.0,0.31489263]
[1732566888549,0.24466749,95343.0,95342.0,0.36732763]
[1732566888942,0.056222,95343.0,95342.0,0.36732763]
[1732566889342,0.056222,95343.0,95342.0,0.31489263]
[1732566889639,0.052438,95337.0,95336.0,0.00837374]
[1732566889838,0.052438,95337.0,95310.0,0.3608]
[1732566889839,0.052443,95331.0,95330.0,0.052441]
[1732566890043,0.05244,95333.0,95332.0,0.3114546]
[1732566890255,0.0004,95337.0,95318.0,0.51956]
[1732566890256,0.052441,95332.0,95318.0,0.16701576]
[1732566890449,0.052448,95319.0,95318.0,0.00825576]
[1732566890649,0.052448,95319.0,95318.0,0.0525331]
[1732566890650,0.052848,95319.0,95318.0,0.0525331]
[1732566890955,0.052848,95319.0,95318.0,0.3115397]
[1732566891249,0.052848,95319.0,95318.0,0.3639877]
[1732566892047,0.20985554,95319.0,95318.0,0.3639877]
[1732566892652,0.052848,95319.0,95318.0,0.1139877]
[1732566892858,0.0004,95319.0,95318.0,0.1139877]
[1732566893747,0.0004,95319.0,95318.0,0.11411746]
[1732566894051,0.0004,95319.0,95318.0,0.47491746]
[1732566900548,0.09546784,95334.0,95331.0,0.052441]
[1732566900854,0.0004816,95343.0,95336.0,0.052438]
[1732566901253,0.0004816,95343.0,95336.0,0.052838]
[1732566902354,0.0004816,95343.0,95336.0,0.211638]
[1732566903059,0.0004816,95343.0,95336.0,0.22016615]
[1732566906056,0.0004,95337.0,95336.0,0.22016615]
[1732566907955,0.052838,95337.0,95336.0,0.22016615]
[1732566908159,0.0004,95337.0,95336.0,0.22016615]
[1732566908352,0.0004,95337.0,95336.0,0.06136615]
[1732566908553,0.0004,95337.0,95336.0,0.22016615]
[1732566909257,0.0416,95337.0,95336.0,0.22016615]
[1732566909653,0.094038,95337.0,95336.0,0.22016615]
[1732566909849,0.094038,95337.0,95336.0,0.00892815]
[1732566910049,0.052444,95327.0,95324.0,0.052445]
[1732566910248,0.08,95326.0,95321.0,0.1588]
[1732566910451,0.08,95326.0,95325.0,0.052445]
[1732566910650,0.08,95326.0,95322.0,0.052446]
[1732566910850,0.052446,95323.0,95322.0,0.052446]
[1732566911055,0.052448,95319.0,95318.0,0.36933659]
[1732566911253,0.052448,95319.0,95318.0,0.00853659]
[1732566911467,0.052448,95319.0,95312.0,0.3608]
[1732566911468,0.367568,95319.0,95312.0,0.3608]
[1732566911760,0.052851,95313.0,95312.0,0.36904929]
[1732566912655,0.052851,95313.0,95312.0,0.42150129]
[1732566913262,0.052851,95313.0,95312.0,0.36904929]
[1732566913462,0.052851,95313.0,95312.0,0.42150129]
[1732566913658,0.052851,95313.0,95312.0,0.36904929]
[1732566913853,0.052851,95313.0,95312.0,0.42150129]
[1732566914053,0.0004,95313.0,95312.0,0.42150129]
[1732566914459,0.052851,95313.0,95312.0,0.42150129]
[1732566914665,0.052851,95313.0,95312.0,0.36904929]
[1732566915961,0.0004,95313.0,95312.0,0.42150129]
[1732566917076,0.0004,95313.0,95312.0,0.73626129]
[1732566917567,0.0004,95313.0,95312.0,0.42150129]
[1732566917867,0.0004,95313.0,95312.0,0.57990129]
[1732566926259,0.0004,95313.0,95312.0,0.42150129]
[1732566926670,0.0004,95313.0,95312.0,0.36904929]
[1732566926869,0.0004,95313.0,95312.0,0.42150129]
[1732566927060,0.0004,95313.0,95312.0,0.57990129]
[1732566927465,0.0004,95313.0,95312.0,0.42150129]
[1732566927770,0.0004,95313.0,95312.0,0.57990129]
[1732566927960,0.0433,95336.0,95335.0,0.052439]
[1732566928463,0.0433,95336.0,95335.0,0.05283901]
[1732566929855,0.0433,95336.0,95335.0,0.06130779]
[1732566932070,0.0433,95336.0,95335.0,0.00886879]
[1732566932570,0.0004816,95343.0,95336.0,0.052438]
[1732566932759,0.0004816,95343.0,95342.0,0.413235]
[1732566932957,0.0004816,95343.0,95342.0,0.36160001]
[1732566933161,0.0529166,95343.0,95342.0,0.36160001]
[1732566934270,0.0529166,95343.0,95342.0,0.41403501]
[1732566934577,0.0004816,95343.0,95342.0,0.41403501]
[1732566935267,0.0529166,95343.0,95342.0,0.41403501]
[1732566935472,0.0004816,95343.0,95342.0,0.41403501]
[1732566937462,0.0529166,95343.0,95342.0,0.41403501]
[1732566937664,0.0004816,95343.0,95342.0,0.41403501]
[1732566938766,0.0529166,95343.0,95342.0,0.41403501]
[1732566939664,0.052434,95344.0,95343.0,0.8470834]
[1732566939867,0.052434,95344.0,95343.0,0.8995184]
[1732566940176,0.188493,95347.0,95346.0,0.052433]
[1732566940570,0.240925,95347.0,95346.0,0.05323301]
[1732566941379,0.052432,95347.0,95346.0,0.05323301]
[1732566943978,0.052432,95347.0,95346.0,0.06185951]
[1732566944272,0.052432,95347.0,95346.0,0.00080001]
[1732566944474,0.052434,95344.0,95343.0,0.8480034]
[1732566944667,0.052434,95344.0,95343.0,0.8995184]
[1732566944867,0.052834,95344.0,95343.0,0.8995184]
[1732566945479,0.0004,95344.0,95343.0,0.8995184]
[1732566945873,0.052834,95344.0,95343.0,0.8995184]
[1732566947774,0.0527291,95344.0,95343.0,0.8470834]
[1732566948273,0.0527291,95344.0,95343.0,0.8995184]
[1732566948882,0.4135291,95344.0,95343.0,0.8470834]
[1732566949183,1.0281691,95344.0,95314.0,0.3608]
[1732566949373,0.05245,95316.0,95315.0,0.052449]
[1732566949984,0.18095,95316.0,95314.0,0.00821623]
[1732566950179,0.18095,95316.0,95310.0,8.168e-05]
[1732566950483,0.052451,95315.0,95314.0,0.05245]
[1732566950981,0.1285,95316.0,95314.0,0.05245]
[1732566951481,0.18095,95316.0,95315.0,0.0004]
[1732566951671,0.3608,95327.0,95315.0,0.3612]
[1732566951870,0.21986878,95325.0,95317.0,0.10567153]
[1732566952082,0.25090906,95335.0,95326.0,0.3612]
[1732566952280,0.21973976,95338.0,95334.0,0.3608]
[1732566952481,0.21973976,95338.0,95337.0,0.052438]
[1732566952688,0.0002951,95344.0,95342.0,0.052435]
[1732566952990,0.0002951,95344.0,95343.0,0.0004]
[1732566953680,0.0527291,95344.0,95343.0,0.0004]
[1732566953879,0.4135291,95344.0,95343.0,0.0004]
[1732566954786,0.0527291,95344.0,95343.0,0.052835]
[1732566954980,0.0002951,95344.0,95343.0,0.052835]
[1732566959676,0.0002951,95344.0,95340.0,0.163635]
[1732566959873,0.0002951,95344.0,95343.0,0.052435]
[1732566963384,0.0002951,95344.0,95340.0,0.163635]
[1732566963886,0.413236,95341.0,95322.0,0.18649501]
[1732566964087,0.052447,95320.0,95316.0,0.053369]
[1732566964388,0.052447,95320.0,95315.0,0.00157364]
[1732566964389,0.052449,95316.0,95315.0,0.00157364]
[1732566964685,0.052452,95311.0,95310.0,8.168e-05]
[1732566965081,0.052852,95311.0,95310.0,8.168e-05]
[1732566965587,0.052852,95311.0,95310.0,0.05253468]
[1732566965588,0.0004,95311.0,95310.0,0.05253468]
[1732566965985,0.052852,95311.0,95310.0,8.168e-05]
[1732566966800,0.052852,95311.0,95310.0,0.05253468]
[1732566966976,0.052852,95311.0,95310.0,8.168e-05]
[1732566967177,0.052852,95311.0,95310.0,0.00835183]
[1732566967483,0.052852,95311.0,95310.0,8.168e-05]
[1732566969682,0.210852,95311.0,95310.0,8.168e-05]
[1732566969876,0.210852,95311.0,95310.0,0.05253468]
[1732566970385,0.0004,95311.0,95310.0,0.05253468]
[1732566978692,0.0004,95323.0,95322.0,0.052446]
[1732566978884,0.0004,95323.0,95322.0,0.885606]
[1732566979084,0.052433,95346.0,95338.0,0.052437]
[1732566979393,0.052433,95346.0,95338.0,0.05294189]
[1732566979591,0.052436,95341.0,95338.0,0.05294189]
[1732566979795,0.052437,95339.0,95338.0,0.00050489]
[1732566980092,0.052438,95337.0,95335.0,0.052439]
[1732566980299,0.3608,95341.0,95322.0,0.51844]
[1732566980700,0.3608,95333.0,95322.0,0.3608]
[1732566980993,0.052445,95323.0,95322.0,0.00830535]
[1732566981194,0.3608,95325.0,95311.0,0.3608]
[1732566981699,0.413244,95325.0,95324.0,0.00050489]
[1732566983798,0.570884,95325.0,95324.0,0.00050489]
[1732566983990,0.052452,95311.0,95310.0,8.168e-05]
[1732566984392,0.052452,95311.0,95310.0,0.00835103]
[1732566984587,0.052452,95311.0,95310.0,8.168e-05]
[1732566985387,0.052452,95311.0,95310.0,0.00853638]
[1732566989289,0.052452,95311.0,95310.0,0.06098938]
[1732566990111,0.052452,95311.0,95310.0,0.00853638]
[1732566990901,0.052452,95311.0,95310.0,8.168e-05]
[1732566991788,0.06072191,95311.0,95310.0,8.168e-05]
[1732566992399,0.052452,95311.0,95310.0,8.168e-05]
[1732566992900,0.31476,95311.0,95285.0,0.052466]
[1732566993203,0.0726,95312.0,95280.0,0.00157423]
[1732566993204,0.052865,95288.0,95287.0,0.413265]
[1732566993698,0.052865,95288.0,95287.0,0.42178858]
[1732566993907,0.0004,95288.0,95287.0,0.42187299]
[1732566999191,0.413665,95288.0,95287.0,0.00860799]
[1732567001407,0.728505,95288.0,95287.0,0.00860799]
[1732567001707,0.052478,95264.0,95263.0,0.05405251]
[1732567001900,0.052478,95264.0,95263.0,0.00983209]
[1732567002098,0.052878,95264.0,95263.0,0.00983209]
[1732567002498,0.052878,95264.0,95263.0,0.00993775]
[1732567004100,0.052878,95264.0,95263.0,0.00836324]
[1732567005208,0.0004,95264.0,95263.0,0.00836324]
[1732567005401,0.0004,95264.0,95263.0,0.06084124]
[1732567007712,0.3608,95287.0,95263.0,0.06084124]
[1732567007713,0.15686052,95304.0,95293.0,0.052462]
[1732567007904,0.052455,95305.0,95293.0,0.052462]
[1732567008202,0.052457,95303.0,95293.0,0.09076201]
[1732567009001,0.052457,95303.0,95293.0,0.09905994]
[1732567009510,0.052458,95301.0,95293.0,0.09905994]
[1732567011001,0.48597656,95308.0,95293.0,0.09905994]
[1732567011404,0.3608,95308.0,95293.0,0.09905994]
[1732567011703,0.052454,95307.0,95293.0,0.09905994]
[1732567012907,0.48597656,95308.0,95293.0,0.09905994]
[1732567013107,0.12517656,95305.0,95293.0,0.04659794]
[1732567013306,0.05259251,95294.0,95293.0,0.00869794]
[1732567016309,0.05259251,95294.0,95293.0,0.06115994]
[1732567016310,0.00013151,95294.0,95293.0,0.06115994]
[1732567016608,0.00013151,95294.0,95293.0,0.21851994]
[1732567018600,0.00013151,95294.0,95293.0,0.00869794]
[1732567018601,0.05259251,95294.0,95293.0,0.00869794]
[1732567019005,0.17776907,95294.0,95293.0,0.00869794]
[1732567019203,0.05259251,95294.0,95293.0,0.00869794]
[1732567019803,0.47179203,95294.0,95280.0,0.3608]
[1732567020011,0.052469,95281.0,95280.0,0.3608]
[1732567020202,0.0004,95281.0,95280.0,0.42190063]
[1732567020813,0.3608,95292.0,95291.0,0.052463]
[1732567021010,0.00069152,95294.0,95293.0,0.052462]
[1732567021213,0.00013151,95294.0,95293.0,0.052462]
[1732567023304,0.00013151,95294.0,95293.0,0.06092506]
[1732567024517,0.05259251,95294.0,95293.0,0.06092506]
[1732567024721,0.05259251,95294.0,95293.0,0.00846306]
[1732567025016,0.052462,95292.0,95291.0,0.3612]
[1732567025318,0.052466,95285.0,95284.0,0.00852917]
[1732567025614,0.052466,95285.0,95267.0,0.3608]
[1732567025615,0.052476,95268.0,95267.0,0.3608]
[1732567026118,0.052478,95264.0,95260.0,0.3608]
[1732567026322,0.052478,95264.0,95261.0,0.052479]
[1732567026519,0.052478,95264.0,95260.0,0.3608]
[1732567026520,0.052878,95264.0,95260.0,0.3608]
[1732567026817,0.052878,95264.0,95263.0,0.00847638]
[1732567027024,0.052878,95264.0,95263.0,0.00010566]
[1732567028413,0.089078,95264.0,95263.0,0.00868034]
[1732567028617,0.089078,95264.0,95263.0,0.00010566]
[1732567028825,0.0366,95264.0,95263.0,0.00010566]
[1732567029119,0.0004,95264.0,95263.0,0.20994366]
[1732567030615,0.0004,95264.0,95263.0,0.05258366]
[1732567031014,0.12580227,95264.0,95263.0,0.05258366]
[1732567031414,0.0004,95264.0,95263.0,0.05258366]
[1732567032322,0.0004,95264.0,95263.0,0.00010566]
[1732567032512,0.052878,95264.0,95263.0,0.00010566]
[1732567033422,0.052483,95255.0,95254.0,0.00044]
[1732567033618,0.052485,95251.0,95250.0,0.00187937]
[1732567034127,0.052885,95251.0,95250.0,0.01025298]
[1732567034321,0.052885,95251.0,95250.0,0.00187937]
[1732567034518,0.052885,95251.0,95250.0,0.00197224]
[1732567035423,0.052885,95251.0,95250.0,0.01047063]
[1732567036122,0.0004,95251.0,95250.0,0.01047063]
[1732567036328,0.0004,95251.0,95250.0,0.06295663]
[1732567037231,0.052885,95251.0,95250.0,0.01047063]
[1732567037524,0.052885,95251.0,95232.0,0.15861502]
[1732567037525,0.367845,95251.0,95232.0,0.15861502]
[1732567037724,0.052492,95238.0,95237.0,0.052492]
[1732567038518,0.15704,95250.0,95237.0,0.00012487]
[1732567038723,0.052489,95244.0,95237.0,0.00012487]
[1732567038924,0.052489,95244.0,95243.0,0.052489]
[1732567039221,0.15704,95250.0,95246.0,0.052488]
[1732567039222,0.052487,95248.0,95246.0,0.052488]
[1732567039939,0.052484,95253.0,95237.0,0.00012487]
[1732567040119,0.3608,95255.0,95254.0,0.052483]
[1732567040432,0.035,95275.0,95252.0,0.0004]
[1732567040625,0.052474,95272.0,95268.0,0.052476]
[1732567040819,0.3608,95287.0,95268.0,0.052876]
[1732567041020,0.3608,95287.0,95270.0,0.51956121]
[1732567041227,0.3608,95287.0,95286.0,0.0004]
[1732567041228,0.413266,95287.0,95286.0,0.0004]
[1732567042138,0.43426928,95287.0,95286.0,0.0004]
[1732567042632,0.59134928,95287.0,95286.0,0.0004]
[1732567045225,0.052474,95271.0,95265.0,0.052477]
[1732567045428,0.3608,95273.0,95265.0,0.052477]
[1732567045635,0.3608,95273.0,95265.0,0.01037933]
[1732567045932,0.3608,95273.0,95261.0,0.0389]
[1732567045933,0.3608,95273.0,95272.0,0.0004]
[1732567046330,0.3608,95273.0,95272.0,0.052873]
[1732567047330,0.3608,95273.0,95272.0,0.06309491]
[1732567048533,0.3608,95273.0,95272.0,0.01062191]
[1732567048838,0.3608,95273.0,95272.0,0.0004]
[1732567048839,0.413273,95273.0,95272.0,0.0004]
[1732567049032,0.728153,95273.0,95272.0,0.0004]
[1732567050430,0.3608,95273.0,95272.0,0.052873]
[1732567050631,0.36136001,95287.0,95285.0,0.052466]
[1732567050828,0.3608,95287.0,95285.0,0.052466]
[1732567051030,0.3608,95287.0,95286.0,0.0004]
[1732567053237,0.3608,95287.0,95286.0,0.01062907]
[1732567055430,0.3608,95287.0,95286.0,0.0004]
[1732567055833,0.97564,95287.0,95260.0,0.0381]
[1732567056041,0.052484,95253.0,95250.0,0.052485]
[1732567056240,0.052484,95253.0,95252.0,0.010848]
[1732567056441,0.413284,95253.0,95252.0,0.010848]
[1732567056738,0.413284,95253.0,95252.0,0.0004]
[1732567060949,0.728244,95253.0,95252.0,0.0004]
[1732567061943,0.052489,95243.0,95232.0,0.052495]
[1732567062152,0.413292,95238.0,95237.0,0.01069203]
[1732567062340,0.414492,95238.0,95237.0,0.00012487]
[1732567064254,0.362,95238.0,95237.0,0.05261787]
[1732567066150,0.362,95238.0,95237.0,0.00012487]
[1732567066453,0.414492,95238.0,95237.0,0.00012487]
[1732567068552,0.414492,95238.0,95237.0,0.05261787]
[1732567068750,0.362,95238.0,95237.0,0.05261787]
[1732567069349,0.414492,95238.0,95237.0,0.05261787]
[1732567069851,0.414492,95238.0,95237.0,0.00012487]
[1732567075255,0.414492,95238.0,95237.0,0.05261787]
[1732567075758,0.414492,95238.0,95237.0,0.00012487]
[1732567076065,0.414492,95238.0,95237.0,0.05261787]
[1732567080166,0.053692,95238.0,95237.0,0.05261787]
[1732567080358,0.0012,95238.0,95237.0,0.05261787]
[1732567081071,0.0012,95238.0,95237.0,0.00012487]
[1732567081363,0.053692,95238.0,95237.0,0.00012487]
[1732567082965,0.5256251,95238.0,95237.0,0.00012487]
[1732567083461,0.4731331,95238.0,95213.0,0.0371]
[1732567083766,0.052503,95219.0,95218.0,0.052503]
[1732567084356,0.3608,95228.0,95218.0,0.00011966]
[1732567084671,0.052503,95219.0,95218.0,0.05262266]
[1732567084964,0.052503,95219.0,95218.0,0.00011966]
[1732567086371,0.413303,95219.0,95218.0,0.00011966]
[1732567086565,0.67588,95219.0,95197.0,0.052515]
[1732567086868,0.052512,95201.0,95190.0,0.1868846]
[1732567087173,0.052512,95201.0,95194.0,0.052516]
[1732567087361,0.052512,95201.0,95200.0,0.11031294]
[1732567087664,0.052512,95201.0,95200.0,0.11042945]
[1732567088273,0.3608,95204.0,95200.0,0.11042945]
[1732567088274,0.3608,95204.0,95203.0,0.052511]
[1732567088561,0.3608,95204.0,95200.0,0.11042945]
[1732567088562,0.052511,95204.0,95200.0,0.11042945]
[1732567088971,0.052511,95204.0,95200.0,0.16294245]
[1732567088972,0.0012,95201.0,95200.0,0.16294245]
[1732567089563,0.053712,95201.0,95200.0,0.16294245]
[1732567089758,0.0012,95201.0,95200.0,0.16294245]
[1732567091358,0.053712,95201.0,95200.0,0.16294245]
[1732567091968,0.0012,95201.0,95200.0,0.16294245]
[1732567092467,0.053712,95201.0,95200.0,0.16294245]
[1732567092669,0.0012,95201.0,95200.0,0.16294245]
[1732567093572,0.0012,95201.0,95200.0,0.16622568]
[1732567094068,0.10588662,95210.0,95200.0,0.16622568]
[1732567094369,0.052512,95201.0,95200.0,0.16294245]
[1732567094563,0.052512,95201.0,95200.0,0.11042945]
[1732567096771,0.052512,95201.0,95200.0,0.16294245]
[1732567097872,0.052512,95201.0,95200.0,0.11042945]
[1732567100073,0.209032,95201.0,95200.0,0.11042945]
[1732567104688,0.209032,95201.0,95200.0,0.16294245]
[1732567104873,0.052512,95201.0,95200.0,0.16294245]
[1732567105769,0.05186354,95201.0,95200.0,0.16294245]
[1732567105966,0.10588662,95210.0,95209.0,0.052508]
[1732567105967,0.052508,95210.0,95209.0,0.052508]
[1732567106475,0.55522001,95224.0,95212.0,0.052506]
[1732567106871,0.51792001,95224.0,95212.0,0.052906]
[1732567107568,0.36140001,95224.0,95212.0,0.052906]
[1732567107772,0.3608,95224.0,95212.0,0.052906]
[1732567107972,0.3608,95224.0,95212.0,0.0004]
[1732567108272,0.413306,95213.0,95212.0,0.0004]
[1732567108479,0.3608,95224.0,95217.0,0.052503]
[1732567108480,0.052503,95218.0,95217.0,0.052503]
[1732567108668,0.052501,95221.0,95212.0,0.0004]
[1732567108865,0.3608,95224.0,95218.0,0.052503]
[1732567109181,0.3608,95224.0,95223.0,0.0525]
[1732567109385,0.3608,95233.0,95231.0,0.052496]
[1732567109677,0.00056001,95240.0,95237.0,0.052493]
[1732567109869,0.08254998,95268.0,95245.0,0.052488]
[1732567109870,0.052478,95264.0,95245.0,0.052488]
[1732567110075,0.052478,95264.0,95260.0,0.05248]
[1732567110281,0.3608,95268.0,95260.0,0.05288]
[1732567110472,0.052472,95274.0,95260.0,0.3678]
[1732567110671,0.052472,95274.0,95260.0,0.37832117]
[1732567110879,9.861e-05,95278.0,95277.0,0.052471]
[1732567111067,9.861e-05,95278.0,95277.0,0.413271]
[1732567111381,9.861e-05,95278.0,95277.0,0.05327101]
[1732567112879,9.861e-05,95278.0,95277.0,0.0637507]
[1732567114481,0.05256861,95278.0,95277.0,0.0112797]
[1732567114781,0.05256861,95278.0,95277.0,0.00080001]
[1732567115375,0.15657861,95278.0,95261.0,0.00012878]
[1732567115570,0.413279,95262.0,95261.0,0.00012878]
[1732567115977,0.774079,95262.0,95261.0,0.00012878]
[1732567116285,0.722,95262.0,95246.0,0.052487]
[1732567116477,0.722,95262.0,95242.0,0.01033262]
[1732567116478,0.3608,95254.0,95242.0,0.01033262]
[1732567116671,0.0004,95247.0,95242.0,0.052489]
[1732567116873,0.0004,95243.0,95242.0,0.052489]
[1732567117072,0.0004,95243.0,95242.0,0.05257326]
[1732567117579,0.0004,95243.0,95242.0,8.426e-05]
[1732567117879,0.0004,95243.0,95242.0,0.05257426]
[1732567118880,0.0004,95243.0,95242.0,0.36757426]
[1732567120283,0.0004,95243.0,95242.0,0.20901426]
[1732567125480,0.0004,95243.0,95242.0,0.05257426]
[1732567125481,0.052889,95243.0,95242.0,0.05257426]
[1732567125683,0.052889,95243.0,95242.0,8.426e-05]
[1732567126188,0.0004,95243.0,95242.0,8.426e-05]
[1732567126391,0.0004,95243.0,95242.0,0.05257426]
[1732567126576,0.0004,95243.0,95242.0,8.426e-05]
[1732567126782,0.052889,95243.0,95242.0,8.426e-05]
[1732567127681,0.052889,95243.0,95242.0,0.05257426]
[1732567130394,0.0004,95243.0,95242.0,0.05257426]
[1732567132894,0.052889,95243.0,95242.0,0.05257426]
[1732567133093,0.052889,95243.0,95242.0,8.426e-05]
[1732567133893,0.0004,95243.0,95242.0,0.05257426]
[1732567134603,0.052889,95243.0,95242.0,0.05257426]
[1732567134787,0.0004,95243.0,95242.0,0.05257426]
[1732567137398,0.052889,95243.0,95242.0,0.05257426]
[1732567138988,0.052889,95243.0,95242.0,8.426e-05]
[1732567139191,0.052889,95243.0,95242.0,0.36757426]
[1732567139192,0.0004,95243.0,95242.0,0.36757426]
[1732567139491,0.052889,95243.0,95242.0,0.0033663]
[1732567139701,0.052889,95243.0,95242.0,0.0558563]
[1732567139901,0.0004,95243.0,95242.0,0.05257426]
[1732567140294,0.0004,95243.0,95242.0,0.36757426]
[1732567140595,0.0004,95243.0,95242.0,0.37085598]
[1732567140792,0.0004,95243.0,95242.0,0.55731365]
[1732567140997,0.3608,95254.0,95253.0,0.052484]
[1732567141202,0.3608,95267.0,95254.0,0.052483]
[1732567141402,0.15612,95276.0,95254.0,0.052483]
[1732567141403,0.15612,95276.0,95259.0,0.3608]
[1732567141588,9.861e-05,95278.0,95259.0,0.3608]
[1732567141589,0.052472,95275.0,95273.0,0.052472]
[1732567141793,9.861e-05,95278.0,95266.0,0.0004]
[1732567141992,9.861e-05,95278.0,95266.0,0.15652]
[1732567142211,0.0004,95267.0,95266.0,0.208597]
[1732567142503,0.052478,95264.0,95262.0,0.052479]
[1732567142695,0.3608,95263.0,95249.0,0.1865109]
[1732567143002,0.052488,95246.0,95245.0,0.01034837]
[1732567143202,0.3612,95250.0,95236.0,0.3608]
[1732567143497,0.3612,95250.0,95237.0,0.1865109]
[1732567143498,0.052889,95243.0,95237.0,0.1865109]
[1732567143699,0.0004,95243.0,95242.0,0.06297061]
[1732567143897,0.0004,95243.0,95242.0,0.05257426]
[1732567144099,0.0004,95243.0,95242.0,0.05585622]
[1732567144304,0.0004,95243.0,95242.0,0.05257426]
[1732567144494,0.0004,95243.0,95242.0,0.37085617]
[1732567144699,0.3608,95267.0,95242.0,0.69466837]
[1732567144999,0.3608,95267.0,95266.0,0.052477]
[1732567145199,0.413276,95267.0,95266.0,0.23922061]
[1732567145391,0.413276,95267.0,95266.0,0.2391238]
[1732567145597,0.413276,95267.0,95266.0,0.052477]
[1732567146303,0.3608,95267.0,95266.0,0.23914121]
[1732567146600,0.3608,95267.0,95266.0,0.06269344]
[1732567146995,0.3608,95267.0,95266.0,0.24928122]
[1732567147504,0.052471,95277.0,95276.0,0.052471]
[1732567147802,0.36089861,95278.0,95272.0,0.2389874]
[1732567147803,0.052472,95274.0,95272.0,0.2389874]
[1732567148004,0.36089861,95278.0,95272.0,0.2389874]
[1732567148005,0.36089861,95278.0,95272.0,0.1865144]
[1732567148304,0.052476,95268.0,95266.0,0.18648449]
[1732567148514,0.0004,95273.0,95259.0,0.05248]
[1732567148515,0.052477,95266.0,95264.0,0.1864994]